bitfinex-derivatives/quotes_SOLF0:USTF0_20241208
["timestamp","ask_amount","ask_price","bid_price","bid_amount"]
[1733649001157,1.2882,236.01,235.93,6.61671228]
[1733649001363,1.2887,236.08,235.9,2.0]
[1733649001555,6.61671228,236.02,235.95,6.61671228]
[1733649001750,6.61671228,236.0,235.95,6.61671228]
[1733649001959,6.61671228,236.0,235.98,2.1173]
[1733649002156,2.0,236.03,235.95,6.61671228]
[1733649002460,2.0,236.03,235.98,2.1173]
[1733649002656,6.61671228,236.05,235.99,6.61671228]
[1733649004059,1.3766,236.19,236.01,6.61671228]
[1733649004364,6.61671228,236.08,236.01,6.61671228]
[1733649004863,6.61671228,236.08,236.03,2.1168]
[1733649005565,8.73311228,236.08,236.03,2.1168]
[1733649006358,2.1161,236.12,236.06,2.1166]
[1733649006555,4.1161,236.12,236.03,6.61671228]
[1733649006755,6.61671228,236.1,236.03,6.61671228]
[1733649007263,6.61671228,236.1,236.05,2.1166]
[1733649007264,8.73301228,236.1,236.05,2.1166]
[1733649007962,6.61671228,236.08,236.05,2.1166]
[1733649008259,6.61671228,236.08,236.03,2.1168]
[1733649008463,6.61671228,236.06,236.01,6.61671228]
[1733649008663,6.61671228,236.06,236.0,2.0]
[1733649009566,6.61671228,236.06,236.02,2.117]
[1733649010559,6.61671228,236.06,236.0,2.1171]
[1733649010865,6.61671228,236.04,236.0,2.1171]
[1733649011267,8.73351228,236.04,235.96,3.303]
[1733649011464,6.61671228,236.04,235.96,7.91971228]
[1733649011768,6.61671228,236.02,235.96,7.91971228]
[1733649012262,6.61671228,236.0,235.96,2.1175]
[1733649012461,6.61671228,236.0,235.93,6.61671228]
[1733649012869,2.1172,235.99,235.93,8.73441228]
[1733649017174,6.61671228,235.98,235.93,8.73441228]
[1733649018172,8.73411228,235.98,235.91,3.4295]
[1733649018573,6.61671228,235.96,235.91,3.4295]
[1733649018975,8.73421228,235.96,235.91,2.1179]
[1733649019577,6.61671228,235.96,235.91,2.1179]
[1733649019980,6.61671228,235.94,235.88,8.00521228]
[1733649020174,6.61671228,235.94,235.88,6.61671228]
[1733649020775,6.61671228,235.94,235.9,2.118]
[1733649022377,6.61671228,235.94,235.88,2.1182]
[1733649022378,8.73451228,235.94,235.88,2.1182]
[1733649022577,6.61671228,235.92,235.86,6.61671228]
[1733649023083,6.61671228,235.92,235.82,1.2713]
[1733649023084,8.73461228,235.92,235.87,2.1183]
[1733649023584,6.61671228,235.92,235.87,2.1183]
[1733649024283,6.61671228,235.92,235.88,2.1182]
[1733649024487,6.61671228,235.92,235.86,6.61671228]
[1733649024690,1.3405,235.96,235.92,2.1178]
[1733649024882,10.73411228,235.97,235.9,6.61671228]
[1733649025481,6.61671228,235.95,235.88,6.61671228]
[1733649026687,6.61671228,235.95,235.91,2.118]
[1733649027385,6.61671228,235.93,235.85,6.61671228]
[1733649027588,6.61671228,235.91,235.85,6.61671228]
[1733649028290,6.61671228,235.91,235.87,2.1182]
[1733649028681,2.0,235.97,235.87,6.61671228]
[1733649028884,6.61671228,235.95,235.91,2.1179]
[1733649029091,8.61671228,235.97,235.89,6.61671228]
[1733649029385,10.73411228,235.97,235.92,2.1178]
[1733649029993,6.61671228,235.95,235.92,2.1178]
[1733649030493,6.61671228,235.93,235.9,2.118]
[1733649031491,6.61671228,235.93,235.87,8.61671228]
[1733649031695,6.61671228,235.95,235.91,2.118]
[1733649033687,6.61671228,235.95,235.92,2.1179]
[1733649034898,2.0,235.97,235.93,2.1177]
[1733649035093,6.61671228,235.96,235.93,2.1177]
[1733649035489,6.61671228,235.96,235.94,2.1177]
[1733649035688,2.1172,236.0,235.91,6.61671228]
[1733649035890,8.61671228,235.99,235.91,6.61671228]
[1733649036198,8.61671228,235.99,235.93,6.61671228]
[1733649037299,6.61671228,235.99,235.93,6.61671228]
[1733649038292,4.1172,236.0,235.93,6.61671228]
[1733649039697,6.61671228,235.99,235.93,6.61671228]
[1733649039903,6.61671228,235.97,235.91,6.61671228]
[1733649040100,6.61671228,235.97,235.89,7.91361228]
[1733649040300,8.73411228,235.97,235.89,7.91361228]
[1733649040603,6.61671228,235.95,235.89,7.91361228]
[1733649041793,8.73431228,235.95,235.87,6.61671228]
[1733649042602,8.73431228,235.95,235.9,2.118]
[1733649043301,6.61671228,235.95,235.9,2.118]
[1733649043503,2.1177,235.94,235.89,2.1181]
[1733649043703,6.61671228,235.93,235.89,2.1181]
[1733649044009,8.73451228,235.93,235.89,2.1181]
[1733649044398,8.73451228,235.93,235.86,2.0]
[1733649044602,8.73451228,235.93,235.88,2.1182]
[1733649045803,2.1179,235.92,235.87,2.1183]
[1733649046901,6.61671228,235.91,235.85,6.61671228]
[1733649047102,8.73471228,235.91,235.86,2.1184]
[1733649048607,8.73471228,235.91,235.83,9.98371228]
[1733649048608,6.61671228,235.89,235.84,2.1185]
[1733649048800,6.61671228,235.89,235.83,8.61671228]
[1733649049004,6.61671228,235.91,235.85,6.61671228]
[1733649049208,6.61671228,235.93,235.85,6.61671228]
[1733649049707,6.61671228,235.93,235.88,2.1182]
[1733649050611,8.73451228,235.93,235.88,2.1182]
[1733649050811,6.61671228,235.91,235.88,2.1182]
[1733649051111,6.61671228,235.91,235.87,2.1183]
[1733649051901,6.61671228,235.89,235.85,2.1184]
[1733649052407,6.61671228,235.89,235.83,8.61671228]
[1733649052710,6.61671228,235.89,235.86,2.1184]
[1733649052915,6.61671228,235.89,235.83,2.0]
[1733649053104,6.61671228,235.89,235.81,7.94791228]
[1733649053506,6.61671228,235.87,235.83,2.1187]
[1733649054107,6.61671228,235.87,235.79,6.61671228]
[1733649054406,6.61671228,235.87,235.84,2.1186]
[1733649055313,10.73481228,235.89,235.84,2.1186]
[1733649057009,10.73481228,235.89,235.85,2.1185]
[1733649059508,3.2905,235.93,235.83,6.61671228]
[1733649059813,6.61671228,235.9,235.88,2.1182]
[1733649060614,6.61671228,235.9,235.83,6.61671228]
[1733649060810,6.61671228,235.88,235.81,6.61671228]
[1733649061114,6.61671228,235.9,235.83,6.61671228]
[1733649061817,6.61671228,235.92,235.85,6.61671228]
[1733649062710,8.73451228,235.92,235.85,6.61671228]
[1733649063014,6.61671228,235.92,235.88,2.1181]
[1733649063312,6.61671228,235.94,235.87,6.61671228]
[1733649063717,8.61671228,235.96,235.89,6.61671228]
[1733649064612,10.73411228,235.96,235.89,6.61671228]
[1733649064813,8.61671228,235.96,235.89,6.61671228]
[1733649065009,1.2944,236.04,235.95,2.1175]
[1733649065211,6.61671228,235.99,235.88,2.0]
[1733649065415,6.61671228,235.97,235.91,6.61671228]
[1733649066222,6.61671228,235.97,235.94,2.1177]
[1733649066421,6.61671228,235.99,235.93,6.61671228]
[1733649067220,2.0,236.01,235.93,6.61671228]
[1733649067417,6.61671228,236.0,235.93,6.61671228]
[1733649069621,6.61671228,236.0,235.96,2.1175]
[1733649074122,6.61671228,236.02,235.95,6.61671228]
[1733649075327,6.61671228,236.02,235.97,2.1174]
[1733649075928,2.1169,236.03,235.98,2.1173]
[1733649076131,6.61671228,236.02,235.98,2.1173]
[1733649076320,6.61671228,236.02,235.95,6.61671228]
[1733649076921,1.3473,236.11,235.97,6.61671228]
[1733649077125,6.61671228,236.04,235.97,6.61671228]
[1733649077532,6.61671228,236.04,235.99,2.1172]
[1733649078629,6.61671228,236.04,235.97,6.61671228]
[1733649079925,6.61671228,236.04,236.0,2.1171]
[1733649083821,6.61671228,236.04,236.01,2.117]
[1733649085930,6.61671228,236.02,235.99,2.1172]
[1733649086330,6.61671228,236.02,235.94,2.7335]
[1733649086630,6.61671228,236.02,235.94,9.35021228]
[1733649086828,8.73381228,236.02,235.97,2.1174]
[1733649087837,6.61671228,236.0,235.95,2.1175]
[1733649088131,6.61671228,236.0,235.94,7.95491228]
[1733649089635,6.61671228,236.0,235.96,2.1175]
[1733649090536,6.61671228,236.0,235.97,2.1174]
[1733649091036,6.61671228,236.0,235.94,1.3382]
[1733649091637,6.61671228,236.0,235.97,2.1174]
[1733649095432,6.61671228,236.0,235.96,2.1175]
[1733649095633,6.61671228,236.0,235.94,1.3382]
[1733649096038,6.61671228,236.0,235.98,2.1173]
[1733649097535,6.61671228,236.0,235.97,2.1174]
[1733649098743,4.1169,236.03,235.98,2.1173]
[1733649098936,6.61671228,236.01,235.98,2.1173]
[1733649100640,6.61671228,236.01,235.99,2.1172]
[1733649100938,6.61671228,236.01,235.93,6.61671228]
[1733649101641,8.73401228,235.99,235.92,2.0]
[1733649101943,6.61671228,235.97,235.88,2.7009]
[1733649102140,6.61671228,235.97,235.93,2.1178]
[1733649103640,8.73421228,235.97,235.93,2.1178]
[1733649104546,6.61671228,235.97,235.9,2.118]
[1733649104744,6.61671228,235.97,235.89,6.61671228]
[1733649105142,2.1175,235.96,235.91,2.118]
[1733649106545,2.0,235.98,235.89,6.61671228]
[1733649106740,6.61671228,235.97,235.91,6.61671228]
[1733649108750,6.61671228,235.97,235.94,2.1177]
[1733649111545,8.73411228,235.97,235.93,2.1178]
[1733649112243,6.61671228,235.95,235.93,2.1178]
[1733649113251,8.73431228,235.95,235.88,9.93781228]
[1733649113550,8.73431228,235.95,235.89,1.05968372]
[1733649113750,8.73431228,235.95,235.9,1.05968372]
[1733649113949,6.61671228,235.95,235.88,9.93781228]
[1733649114150,6.61671228,235.95,235.89,1.05968741]
[1733649114448,6.61671228,235.95,235.88,9.93781228]
[1733649114449,2.1175,235.97,235.92,2.1179]
[1733649114648,6.61671228,235.97,235.9,6.61671228]
[1733649116842,2.0,235.98,235.9,6.61671228]
[1733649117048,8.61671228,235.98,235.9,6.61671228]
[1733649117747,8.61671228,235.98,235.96,2.1175]
[1733649117947,2.6202,236.02,235.96,2.1175]
[1733649118151,9.23691228,236.02,235.94,6.61671228]
[1733649118343,8.61671228,236.02,235.98,2.1173]
[1733649119250,6.61671228,236.02,235.94,6.61671228]
[1733649120355,6.61671228,236.02,235.99,2.1172]
[1733649123054,6.61671228,236.02,235.93,2.0]
[1733649123256,6.61671228,236.02,235.98,2.1173]
[1733649124558,8.73371228,236.02,235.98,2.1173]
[1733649125963,2.117,236.02,235.98,2.1173]
[1733649126160,6.61671228,236.01,235.98,2.1173]
[1733649127252,2.0,236.05,235.99,2.1172]
[1733649127459,6.61671228,236.03,235.96,6.61671228]
[1733649128156,2.5983,236.11,235.96,6.61671228]
[1733649128457,2.5983,236.11,235.98,6.61671228]
[1733649128458,6.61671228,236.05,235.98,6.61671228]
[1733649129363,6.61671228,236.05,236.02,2.1169]
[1733649129565,6.61671228,236.05,235.98,6.61671228]
[1733649129858,6.61671228,236.05,236.03,2.1169]
[1733649130364,6.61671228,236.07,236.03,2.1169]
[1733649130566,2.1164,236.09,236.04,2.1168]
[1733649130869,2.5983,236.11,236.02,6.61671228]
[1733649131061,6.61671228,236.09,236.02,6.61671228]
[1733649131256,6.61671228,236.09,236.05,2.1167]
[1733649131661,2.5983,236.11,236.07,2.1164]
[1733649131861,14.02497623,236.1,236.07,2.1164]
[1733649132061,1.2639,236.11,236.07,2.1164]
[1733649132257,7.40578568,236.1,236.07,2.1164]
[1733649132462,7.88061228,236.11,236.07,2.1164]
[1733649132665,7.40582741,236.1,236.07,2.1164]
[1733649132966,6.61671228,236.11,236.07,2.1164]
[1733649133161,7.40582741,236.1,236.07,2.1164]
[1733649133565,6.61671228,236.11,236.07,2.1164]
[1733649133766,2.0,236.16,236.07,2.1164]
[1733649133961,2.1161,236.13,236.09,2.1163]
[1733649134165,6.61671228,236.11,236.09,2.1163]
[1733649134665,6.61671228,236.11,236.04,6.61671228]
[1733649134866,6.61671228,236.07,236.0,1.3924]
[1733649135070,6.61671228,236.07,236.0,2.0]
[1733649136166,8.73321228,236.07,236.02,2.117]
[1733649137563,2.0,236.1,236.0,2.0]
[1733649137767,6.61671228,236.07,236.03,2.1168]
[1733649140374,8.73321228,236.07,236.03,2.1168]
[1733649140674,6.61671228,236.07,236.03,2.1168]
[1733649140874,4.1163,236.1,236.04,2.1167]
[1733649141073,14.0109345,236.09,236.04,2.1167]
[1733649141267,6.61671228,236.09,236.01,6.61671228]
[1733649141472,2.0,236.1,236.05,2.1166]
[1733649141670,8.61671228,236.1,236.05,2.1166]
[1733649141872,6.61671228,236.1,236.05,2.1166]
[1733649142074,6.61671228,236.1,236.06,2.1166]
[1733649142075,8.73301228,236.1,236.06,2.1166]
[1733649143077,6.61671228,236.1,236.06,2.1166]
[1733649144080,6.61671228,236.1,236.03,6.61671228]
[1733649144278,6.61671228,236.1,236.08,2.1164]
[1733649144481,1.3242,236.17,236.05,6.61671228]
[1733649144677,2.1159,236.14,236.09,2.1163]
[1733649144877,6.61671228,236.13,236.05,8.61671228]
[1733649145284,2.0,236.16,236.05,8.61671228]
[1733649145285,2.1158,236.15,236.07,6.61671228]
[1733649145485,6.61671228,236.14,236.07,6.61671228]
[1733649145677,1.3242,236.17,236.1,6.61671228]
[1733649145877,1.2949,236.22,236.11,2.1161]
[1733649145878,8.73251228,236.16,236.11,2.1161]
[1733649146079,8.73251228,236.16,236.08,6.61671228]
[1733649146485,8.73251228,236.16,236.11,2.1161]
[1733649146683,6.61671228,236.14,236.11,2.1161]
[1733649146886,8.73261228,236.14,236.09,2.1163]
[1733649147283,6.61671228,236.12,236.09,2.1163]
[1733649147587,6.61671228,236.12,236.1,2.1162]
[1733649147986,2.1159,236.14,236.1,2.1162]
[1733649148187,6.61671228,236.13,236.1,2.1162]
[1733649149289,6.61671228,236.13,236.09,2.1163]
[1733649151294,2.1159,236.14,236.09,2.1163]
[1733649151489,6.61671228,236.13,236.09,2.1163]
[1733649152389,2.1159,236.14,236.09,2.1163]
[1733649152587,8.73261228,236.14,236.09,2.1163]
[1733649156700,8.73261228,236.14,236.1,2.1163]
[1733649157496,8.73261228,236.14,236.08,2.1164]
[1733649157790,8.73261228,236.14,236.06,6.61671228]
[1733649158588,2.116,236.13,236.06,6.61671228]
[1733649158791,6.61671228,236.12,236.06,6.61671228]
[1733649159198,6.61671228,236.08,236.05,2.1167]
[1733649159490,6.61671228,236.08,236.02,8.59671228]
[1733649159694,6.61671228,236.08,236.02,1.98]
[1733649160796,8.73321228,236.08,236.03,2.1168]
[1733649162397,6.61671228,236.08,236.04,2.1168]
[1733649163602,6.61671228,236.08,236.0,6.61671228]
[1733649163603,8.73341228,236.06,236.0,1.98]
[1733649164392,6.61671228,236.03,235.96,6.61671228]
[1733649164594,6.61671228,236.03,235.96,8.59671228]
[1733649165497,6.61671228,236.03,235.99,2.1172]
[1733649166001,6.61671228,236.01,235.94,2.1176]
[1733649166202,6.61671228,236.01,235.96,1.98]
[1733649167113,6.61671228,235.99,235.94,2.1176]
[1733649167296,6.61671228,235.99,235.93,1.98]
[1733649167496,6.61671228,235.99,235.93,4.0977]
[1733649167803,8.73401228,235.99,235.93,4.0977]
[1733649167997,6.61671228,235.97,235.91,6.61671228]
[1733649168199,6.61671228,235.97,235.92,2.1178]
[1733649168602,6.61671228,235.97,235.91,8.59671228]
[1733649169201,1.98,236.04,235.94,2.1177]
[1733649169394,6.61671228,235.99,235.94,2.1177]
[1733649171101,8.73391228,235.99,235.94,2.1177]
[1733649172294,2.1172,235.99,235.94,2.1177]
[1733649172495,6.61671228,235.98,235.94,2.1177]
[1733649173503,6.61671228,235.98,235.95,2.1176]
[1733649173705,6.61671228,235.98,235.92,6.61671228]
[1733649174306,6.61671228,235.98,235.94,2.1177]
[1733649174607,6.61671228,235.98,235.91,1.98]
[1733649175708,6.61671228,235.98,235.93,2.1178]
[1733649176710,8.73411228,235.98,235.93,2.1178]
[1733649177409,2.1174,235.98,235.93,2.1178]
[1733649177612,8.73411228,235.98,235.93,2.1178]
[1733649178005,6.61671228,235.96,235.92,2.1179]
[1733649180207,6.61671228,235.96,235.93,2.1178]
[1733649182510,8.73421228,235.96,235.91,2.118]
[1733649183305,6.61671228,235.96,235.92,2.1179]
[1733649184407,6.61671228,235.96,235.9,83.79075575]
[1733649184606,6.61671228,235.96,235.93,2.1178]
[1733649184814,6.61671228,235.96,235.91,6.61671228]
[1733649186307,1.98,235.99,235.91,6.61671228]
[1733649186512,6.61671228,235.98,235.94,2.1177]
[1733649186910,2.117,236.03,235.97,2.1174]
[1733649187111,6.61671228,236.01,235.97,2.1174]
[1733649188714,6.61671228,236.01,235.98,2.1173]
[1733649189516,2.117,236.02,235.98,2.1173]
[1733649189717,6.61671228,236.0,235.98,2.1173]
[1733649191115,6.61671228,236.0,235.99,2.1173]
[1733649191311,6.61671228,236.0,235.93,6.61671228]
[1733649192520,6.61671228,235.98,235.93,6.61671228]
[1733649193720,6.61671228,235.98,235.96,2.1175]
[1733649194019,6.61671228,235.98,235.93,6.61671228]
[1733649194315,6.61671228,235.98,235.97,2.1175]
[1733649194617,6.61671228,236.0,235.97,2.1175]
[1733649195214,2.1171,236.01,235.97,2.1175]
[1733649195414,6.61671228,236.0,235.93,8.59671228]
[1733649196010,6.61671228,236.0,235.95,2.1177]
[1733649196215,6.61671228,236.0,235.93,8.59671228]
[1733649196718,6.61671228,235.98,235.96,2.1176]
[1733649196918,6.61671228,235.98,235.93,6.61671228]
[1733649197623,6.61671228,235.98,235.95,2.1176]
[1733649198220,6.61671228,235.98,235.94,2.1178]
[1733649198522,6.61671228,235.96,235.9,85.77075575]
[1733649199125,6.61671228,235.96,235.93,2.1178]
[1733649200424,8.73411228,235.98,235.93,2.1178]
[1733649202423,2.1173,236.0,235.94,2.1177]
[1733649202627,1.98,236.01,235.92,6.61671228]
[1733649202829,6.61671228,236.0,235.92,6.61671228]
[1733649203734,6.61671228,236.0,235.97,2.1175]
[1733649205838,6.61671228,235.98,235.95,2.1176]
[1733649207131,2.1172,236.0,235.96,2.1176]
[1733649207339,6.61671228,235.98,235.96,2.1176]
[1733649215346,2.1172,236.01,235.96,2.1176]
[1733649215642,6.61671228,235.98,235.96,2.1176]
[1733649219344,1.98,236.04,235.95,6.61671228]
[1733649219544,6.61671228,236.02,235.92,1.98]
[1733649219944,6.61671228,236.02,235.94,6.61671228]
[1733649220246,6.61671228,236.02,235.98,2.1173]
[1733649220445,6.61671228,236.0,235.92,8.59671228]
[1733649221453,1.98,236.05,235.92,8.59671228]
[1733649221644,6.61671228,235.99,235.97,2.1175]
[1733649221846,6.61671228,235.99,235.92,6.61671228]
[1733649222351,6.61671228,235.97,235.95,2.1176]
[1733649223945,2.1173,236.0,235.95,2.1176]
[1733649224145,6.61671228,235.97,235.95,2.1176]
[1733649233661,1.98,236.02,235.9,92.38746803]
[1733649233857,6.61671228,236.0,235.92,6.61671228]
[1733649234563,6.61671228,236.0,235.98,2.1173]
[1733649235162,1.98,236.02,235.99,2.1173]
[1733649235358,6.61671228,236.01,235.99,2.1173]
[1733649236265,1.98,236.02,236.01,2.1171]
[1733649236459,6.61671228,236.03,235.96,6.61671228]
[1733649237363,2.1166,236.07,235.96,6.61671228]
[1733649237562,6.61671228,236.04,235.96,6.61671228]
[1733649237958,6.61671228,236.04,236.02,2.117]
[1733649240666,6.61671228,236.04,236.0,2.1171]
[1733649240667,8.73361228,236.04,236.0,2.1171]
[1733649240965,6.61671228,236.01,236.0,2.1171]
[1733649242266,6.61671228,236.01,235.94,8.59671228]
[1733649242464,6.61671228,235.99,235.94,1.98]
[1733649242864,6.61671228,235.97,235.94,1.98]
[1733649243262,6.61671228,235.95,235.94,1.98]
[1733649243462,6.61671228,235.95,235.9,85.77075575]
[1733649243666,6.61671228,235.97,235.94,2.1177]
[1733649245670,6.61671228,235.97,235.9,92.38746803]
[1733649245871,6.61671228,235.97,235.92,2.1178]
[1733649246071,6.61671228,235.95,235.92,2.1178]
[1733649248466,6.61671228,235.95,235.93,2.1178]
[1733649248667,2.1174,235.98,235.93,2.1178]
[1733649248865,6.61671228,235.96,235.93,2.1178]
[1733649253166,6.61671228,235.97,235.93,2.1178]
[1733649253977,6.61671228,235.95,235.93,2.1178]
[1733649255177,6.61671228,235.95,235.92,2.1179]
[1733649258682,6.61671228,235.95,235.93,2.1178]
[1733649259273,2.7068,236.08,235.94,6.61671228]
[1733649259475,6.61671228,236.03,235.96,6.61671228]
[1733649259678,6.61671228,236.03,235.94,1.98]
[1733649259880,6.61671228,236.03,235.96,6.61671228]
[1733649260072,6.61671228,236.04,235.98,6.61671228]
[1733649260277,6.61671228,236.04,236.01,2.117]
[1733649262975,6.61671228,236.02,235.96,6.61671228]
[1733649263180,6.61671228,236.02,235.99,2.1173]
[1733649264078,6.61671228,236.02,235.98,2.1174]
[1733649265482,6.61671228,236.0,235.98,2.1174]
[1733649265683,6.61671228,236.0,235.97,2.1175]
[1733649266985,6.61671228,236.0,235.98,2.1174]
[1733649267480,6.61671228,236.0,235.94,8.59671228]
[1733649268875,6.61671228,236.0,235.94,1.98]
[1733649269474,6.61671228,236.0,235.96,2.1175]
[1733649271081,6.61671228,236.0,235.94,1.98]
[1733649271082,6.61671228,235.98,235.94,2.1177]
[1733649276490,6.61671228,235.98,235.95,2.1176]
[1733649277885,6.61671228,235.96,235.95,2.1176]
[1733649286997,6.61671228,235.96,235.92,2.1179]
[1733649287198,6.61671228,235.93,235.92,2.1179]
[1733649288001,6.61671228,235.93,235.9,2.118]
[1733649288196,6.61671228,235.91,235.84,2.6419]
[1733649288502,6.61671228,235.87,235.85,3.17843746]
[1733649288698,6.61671228,235.87,235.85,2.1185]
[1733649292709,1.2626,235.98,235.84,6.61671228]
[1733649292909,6.61671228,235.91,235.84,6.61671228]
[1733649293308,6.61671228,235.91,235.88,2.1183]
[1733649293911,6.61671228,235.89,235.88,2.1183]
[1733649294111,6.61671228,235.89,235.86,2.1184]
[1733649294410,6.61671228,235.89,235.83,6.61671228]
[1733649294606,6.61671228,235.89,235.77,85.19794744]
[1733649294607,6.61671228,235.89,235.86,2.1185]
[1733649295008,6.61671228,235.87,235.81,1.98]
[1733649295306,6.61671228,235.87,235.84,2.1186]
[1733649295512,6.61671228,235.86,235.84,2.1186]
[1733649297310,1.98,235.92,235.82,6.61671228]
[1733649297512,6.61671228,235.89,235.87,2.1183]
[1733649298311,6.61671228,235.89,235.81,1.98]
[1733649298312,6.61671228,235.89,235.88,2.1183]
[1733649299611,1.98,235.93,235.89,2.1181]
[1733649300012,6.61671228,235.91,235.84,6.61671228]
[1733649300213,6.61671228,235.91,235.86,2.1185]
[1733649300513,6.61671228,235.91,235.84,6.61671228]
[1733649300713,6.61671228,235.91,235.9,2.1181]
[1733649300917,6.61671228,235.92,235.84,6.61671228]
[1733649301215,6.61671228,235.92,235.86,6.61671228]
[1733649301810,6.61671228,235.92,235.81,1.98]
[1733649301811,1.98,235.96,235.92,2.1179]
[1733649302013,6.61671228,235.94,235.92,2.1179]
[1733649302519,6.61671228,235.94,235.91,2.118]
[1733649304715,6.61671228,235.94,235.92,2.1179]
[1733649304920,6.61671228,235.94,235.88,6.61671228]
[1733649305319,6.61671228,235.97,235.95,2.1177]
[1733649306722,6.61671228,235.97,235.96,2.1176]
[1733649309313,6.61671228,235.97,235.89,6.61671228]
[1733649309521,6.61671228,235.97,235.95,2.1176]
[1733649315025,6.61671228,235.97,235.89,6.61671228]
[1733649315221,6.61671228,235.95,235.93,2.1178]
[1733649315418,6.61671228,235.95,235.87,3.9711]
[1733649315622,6.61671228,235.92,235.87,1.2901]
[1733649316019,6.61671228,235.9,235.81,7.245234]
[1733649316227,1.98,235.95,235.82,11.88337796]
[1733649316420,6.61671228,235.91,235.86,2.1185]
[1733649316726,6.61671228,235.89,235.83,6.61671228]
[1733649316928,6.61671228,235.89,235.84,1.05989674]
[1733649317126,6.61671228,235.89,235.86,2.1184]
[1733649317324,2.1179,235.93,235.83,6.61671228]
[1733649317625,6.61671228,235.91,235.84,1.05990864]
[1733649317926,6.61671228,235.91,235.85,7.67662092]
[1733649318130,1.98,235.95,235.87,6.61671228]
[1733649318527,6.61671228,235.94,235.87,6.61671228]
[1733649318827,1.98,235.97,235.89,6.61671228]
[1733649319027,6.61671228,235.96,235.89,6.61671228]
[1733649319224,6.61671228,235.96,235.91,2.118]
[1733649319426,6.61671228,235.96,235.89,6.61671228]
[1733649319826,6.61671228,235.98,235.91,6.61671228]
[1733649320330,6.61671228,235.98,235.93,2.1178]
[1733649320920,1.98,236.0,235.94,2.1177]
[1733649321126,6.61671228,235.98,235.91,6.61671228]
[1733649321626,1.98,236.0,235.95,2.1176]
[1733649321927,6.61671228,235.99,235.95,2.1176]
[1733649322233,6.61671228,235.99,235.96,2.1175]
[1733649322722,1.98,236.0,235.96,2.1175]
[1733649322927,6.61671228,235.99,235.96,2.1175]
[1733649325132,2.1172,236.01,235.96,2.1175]
[1733649325329,6.61671228,235.99,235.96,2.1175]
[1733649326128,4.097,236.03,235.97,2.1175]
[1733649326328,6.61671228,236.01,235.93,6.61671228]
[1733649326534,4.097,236.03,235.95,6.61671228]
[1733649326833,2.117,236.03,235.95,6.61671228]
[1733649327036,6.61671228,236.01,235.95,6.61671228]
[1733649327738,6.61671228,236.01,235.98,2.1173]
[1733649328336,6.61671228,236.01,235.99,2.1173]
[1733649329232,2.1168,236.06,236.01,2.1171]
[1733649329432,2.1168,236.06,235.97,6.61671228]
[1733649329637,6.61671228,236.06,235.99,6.61671228]
[1733649330036,6.61671228,236.06,236.03,2.1169]
[1733649330831,1.98,236.07,235.99,6.61671228]
[1733649331031,6.61671228,236.07,236.01,6.61671228]
[1733649331233,4.0963,236.11,236.01,6.61671228]
[1733649331535,2.6893,236.15,236.03,6.61671228]
[1733649331734,6.61671228,236.12,236.05,6.61671228]
[1733649332634,6.61671228,236.1,236.03,6.61671228]
[1733649334236,6.61671228,236.1,236.07,2.1166]
[1733649334838,6.61671228,236.11,236.07,2.1166]
[1733649335037,2.1161,236.12,236.07,2.1166]
[1733649335234,6.61671228,236.11,236.07,2.1166]
[1733649335641,6.61671228,236.11,236.05,2.1167]
[1733649336034,6.61671228,236.09,236.05,2.1167]
[1733649336437,2.1162,236.11,236.05,2.1167]
[1733649336733,6.61671228,236.07,235.86,5.897434]
[1733649336933,15.3993,236.15,235.92,7.88721228]
[1733649336934,6.61671228,235.99,235.92,7.88721228]
[1733649337444,6.61671228,236.02,235.96,6.61671228]
[1733649337739,6.61671228,236.02,235.94,6.61671228]
[1733649338740,6.61671228,236.0,235.97,2.1174]
[1733649339435,6.61671228,236.02,235.97,2.1174]
[1733649341348,1.98,236.04,235.98,6.61671228]
[1733649341841,1.98,236.04,236.0,2.1172]
[1733649342544,1.98,236.08,236.0,2.1172]
[1733649342745,6.61671228,236.06,236.0,6.61671228]
[1733649343045,8.73341228,236.06,236.01,2.1171]
[1733649343841,2.1167,236.06,236.01,2.1171]
[1733649344045,8.73341228,236.06,236.02,2.117]
[1733649346537,4.0966,236.08,236.03,2.1169]
[1733649346737,6.61671228,236.08,236.02,6.61671228]
[1733649346943,6.61671228,236.09,236.02,6.61671228]
[1733649347838,6.61671228,236.11,236.04,6.61671228]